[Event "Live Chess"]
[Site "Chess.com"]
[Date "2023.05.20"]
[Round "-"]
[White "rideuv21"]
[Black "whitedjohn"]
[Result "1-0"]
[WhiteElo "1820"]
[BlackElo "1656"]
[TimeControl "300"]
[EndTime "13:05:14 PDT"]
[Termination "rideuv21 won by checkmate"]

1. e4 {[%clk 0:04:58.6]} 1... Nf6 {[%clk 0:04:58.4]} 2. e5 {[%clk 0:04:57.7]}
2... Nd5 {[%clk 0:04:54.1]} 3. d4 {[%clk 0:04:57.1]} 3... d6 {[%clk 0:04:52.8]}
4. Nf3 {[%clk 0:04:56.5]} 4... dxe5 {[%clk 0:04:50.4]} 5. Nxe5 {[%clk
0:04:56.4]} 5... g6 {[%clk 0:04:46.5]} 6. Bc4 {[%clk 0:04:54.5]} 6... c6 {[%clk
0:04:45.9]} 7. O-O {[%clk 0:04:52.6]} 7... Bg7 {[%clk 0:04:45.3]} 8. Nc3 {[%clk
0:04:50.1]} 8... O-O {[%clk 0:04:43.8]} 9. Nxd5 {[%clk 0:04:47.6]} 9... cxd5
{[%clk 0:04:41.2]} 10. Bb3 {[%clk 0:04:47.3]} 10... Nc6 {[%clk 0:04:38.5]} 11.
Bf4 {[%clk 0:04:44.1]} 11... Qb6 {[%clk 0:04:24.9]} 12. c3 {[%clk 0:04:40]}
12... Nxe5 {[%clk 0:04:14.2]} 13. Bxe5 {[%clk 0:04:39.9]} 13... Bxe5 {[%clk
0:04:11.5]} 14. dxe5 {[%clk 0:04:39.8]} 14... e6 {[%clk 0:04:06.7]} 15. h4
{[%clk 0:04:37.3]} 15... Bd7 {[%clk 0:04:05.9]} 16. h5 {[%clk 0:04:36.6]} 16...
Bb5 {[%clk 0:04:03.1]} 17. Re1 {[%clk 0:04:35.1]} 17... Qd8 {[%clk 0:03:57.4]}
18. Re3 {[%clk 0:04:32.4]} 18... Qg5 {[%clk 0:03:49]} 19. hxg6 {[%clk
0:04:23.1]} 19... hxg6 {[%clk 0:03:45.8]} 20. Qd4 {[%clk 0:04:19]} 20... Kg7
{[%clk 0:03:30.2]} 21. Rg3 {[%clk 0:04:05]} 21... Qe7 {[%clk 0:03:18.6]} 22. Bc2
{[%clk 0:04:02.6]} 22... Rh8 {[%clk 0:03:15.1]} 23. a4 {[%clk 0:03:54]} 23...
Rh4 {[%clk 0:03:06.6]} 24. Qe3 {[%clk 0:03:52.1]} 24... Bc6 {[%clk 0:02:59.8]}
25. Re1 {[%clk 0:03:46.8]} 25... Rah8 {[%clk 0:02:58.6]} 26. Rh3 {[%clk
0:03:46]} 26... Rxh3 {[%clk 0:02:42.7]} 27. gxh3 {[%clk 0:03:45.9]} 27... Qh4
{[%clk 0:02:37.2]} 28. Kh2 {[%clk 0:03:39.6]} 28... Bxa4 {[%clk 0:02:33.6]} 29.
Bxa4 {[%clk 0:03:28.9]} 29... Qxa4 {[%clk 0:02:31.8]} 30. Qf3 {[%clk 0:03:28.1]}
30... Qd7 {[%clk 0:01:44.5]} 31. Qf6+ {[%clk 0:03:22.6]} 31... Kg8 {[%clk
0:01:44]} 32. Ra1 {[%clk 0:03:16.5]} 32... a6 {[%clk 0:01:40.9]} 33. Rg1 {[%clk
0:03:15.6]} 33... Rh6 {[%clk 0:01:32.3]} 34. f4 {[%clk 0:03:13.1]} 34... d4
{[%clk 0:01:20.2]} 35. Rd1 {[%clk 0:03:07.1]} 35... d3 {[%clk 0:01:14.8]} 36.
Qg5 {[%clk 0:03:06.7]} 36... Kh7 {[%clk 0:01:09.2]} 37. Qg3 {[%clk 0:03:05.5]}
37... Qb5 {[%clk 0:00:59.8]} 38. Rd2 {[%clk 0:02:59.5]} 38... Qc4 {[%clk
0:00:46.2]} 39. Rxd3 {[%clk 0:02:47.5]} 39... Qb3 {[%clk 0:00:44.9]} 40. Rd2
{[%clk 0:02:46.1]} 40... Kg7 {[%clk 0:00:41.9]} 41. Qg5 {[%clk 0:02:44.2]} 41...
Rh8 {[%clk 0:00:39.9]} 42. Qf6+ {[%clk 0:02:43.3]} 42... Kh7 {[%clk 0:00:38]}
43. f5 {[%clk 0:02:41.8]} 43... exf5 {[%clk 0:00:30]} 44. Rd4 {[%clk 0:02:29.3]}
44... Qe6 {[%clk 0:00:26.8]} 45. Rh4+ {[%clk 0:02:26.4]} 45... Kg8 {[%clk
0:00:22.2]} 46. Rxh8# {[%clk 0:02:26.3]} 1-0

[Event "Live Chess"]
[Site "Chess.com"]
[Date "2023.05.20"]
[Round "-"]
[White "CheckThis4"]
[Black "Doge_Dandolo"]
[Result "1-0"]
[WhiteElo "2552"]
[BlackElo "2016"]
[TimeControl "300"]
[EndTime "13:05:15 PDT"]
[Termination "CheckThis4 won by resignation"]

1. e4 {[%clk 0:04:59]} 1... c6 {[%clk 0:04:58.2]} 2. d3 {[%clk 0:04:54.8]} 2...
d5 {[%clk 0:04:57.4]} 3. Nd2 {[%clk 0:04:54.3]} 3... g6 {[%clk 0:04:56]} 4. g3
{[%clk 0:04:53.2]} 4... Bg7 {[%clk 0:04:55.3]} 5. Bg2 {[%clk 0:04:52.7]} 5...
Nd7 {[%clk 0:04:50.6]} 6. Ngf3 {[%clk 0:04:51.8]} 6... e5 {[%clk 0:04:49.3]} 7.
O-O {[%clk 0:04:50.5]} 7... Qc7 {[%clk 0:04:47.5]} 8. c3 {[%clk 0:04:48.9]} 8...
Ngf6 {[%clk 0:04:45]} 9. Re1 {[%clk 0:04:47.8]} 9... O-O {[%clk 0:04:43.6]} 10.
a4 {[%clk 0:04:45.3]} 10... a5 {[%clk 0:04:40]} 11. Qc2 {[%clk 0:04:44.2]} 11...
Re8 {[%clk 0:04:38]} 12. Nf1 {[%clk 0:04:30.1]} 12... Nb6 {[%clk 0:04:33.1]} 13.
b3 {[%clk 0:04:28]} 13... Nbd7 {[%clk 0:04:27.4]} 14. Ba3 {[%clk 0:04:24.5]}
14... b6 {[%clk 0:04:24.3]} 15. Rad1 {[%clk 0:04:18.8]} 15... Ba6 {[%clk
0:04:22.5]} 16. Ne3 {[%clk 0:04:08.7]} 16... dxe4 {[%clk 0:04:18.9]} 17. dxe4
{[%clk 0:04:08.6]} 17... Rad8 {[%clk 0:04:17.1]} 18. Bd6 {[%clk 0:04:03.6]}
18... Qc8 {[%clk 0:04:10.1]} 19. Nc4 {[%clk 0:03:58.6]} 19... Bxc4 {[%clk
0:04:06]} 20. bxc4 {[%clk 0:03:58.5]} 20... Nf8 {[%clk 0:04:01.2]} 21. Bxe5
{[%clk 0:03:49.7]} 21... Rxd1 {[%clk 0:03:57.1]} 22. Rxd1 {[%clk 0:03:49.6]}
22... N6d7 {[%clk 0:03:54]} 23. Bxg7 {[%clk 0:03:47.2]} 23... Kxg7 {[%clk
0:03:52.7]} 24. Rd6 {[%clk 0:03:36.3]} 24... Ne6 {[%clk 0:03:50.2]} 25. Nd4
{[%clk 0:03:26]} 25... Ndc5 {[%clk 0:03:47.9]} 26. Nxc6 {[%clk 0:03:20.9]} 26...
Qc7 {[%clk 0:03:42.6]} 27. e5 {[%clk 0:03:19.9]} 27... f6 {[%clk 0:03:34.1]} 28.
Qd1 {[%clk 0:03:15.3]} 28... fxe5 {[%clk 0:03:23.8]} 29. Nxe5 {[%clk 0:03:14]}
29... Re7 {[%clk 0:03:20.2]} 30. h4 {[%clk 0:03:11.6]} 30... Qc8 {[%clk
0:03:12.7]} 31. Kh2 {[%clk 0:03:07.2]} 31... Qe8 {[%clk 0:03:10.9]} 32. f4
{[%clk 0:03:05.2]} 32... Qxa4 {[%clk 0:03:07.2]} 33. Qd5 {[%clk 0:02:55.9]}
33... Qc2 {[%clk 0:02:59.8]} 34. Rxb6 {[%clk 0:02:49.7]} 34... Qxc3 {[%clk
0:02:50.1]} 35. Rc6 {[%clk 0:02:32.5]} 35... a4 {[%clk 0:02:47.9]} 36. Rxc5
{[%clk 0:02:30.4]} 36... Nxc5 {[%clk 0:02:46.4]} 37. Qxc5 {[%clk 0:02:30]} 37...
Rb7 {[%clk 0:02:39.1]} 38. Bxb7 {[%clk 0:02:27.8]} 1-0

[Event "Live Chess"]
[Site "Chess.com"]
[Date "2023.05.20"]
[Round "-"]
[White "Wild_Tiger"]
[Black "LiamClery2020"]
[Result "0-1"]
[WhiteElo "1056"]
[BlackElo "2079"]
[TimeControl "300"]
[EndTime "13:05:24 PDT"]
[Termination "LiamClery2020 won by checkmate"]

1. d4 {[%clk 0:04:57.1]} 1... Nf6 {[%clk 0:04:58.2]} 2. Bg5 {[%clk 0:04:54.1]}
2... Ne4 {[%clk 0:04:57.1]} 3. Bh4 {[%clk 0:04:50.2]} 3... d5 {[%clk 0:04:53.9]}
4. f3 {[%clk 0:04:47.5]} 4... Nf6 {[%clk 0:04:51.1]} 5. Bxf6 {[%clk 0:04:45.1]}
5... gxf6 {[%clk 0:04:51]} 6. Nc3 {[%clk 0:04:37.2]} 6... c6 {[%clk 0:04:47.7]}
7. e4 {[%clk 0:04:34.9]} 7... e5 {[%clk 0:04:45.9]} 8. Qd2 {[%clk 0:04:22.4]}
8... Bb4 {[%clk 0:04:44.4]} 9. a3 {[%clk 0:04:18.5]} 9... Bxc3 {[%clk
0:04:42.6]} 10. Qxc3 {[%clk 0:04:17]} 10... Nd7 {[%clk 0:04:40.1]} 11. exd5
{[%clk 0:04:03.3]} 11... cxd5 {[%clk 0:04:38.5]} 12. Bb5 {[%clk 0:03:58.7]}
12... Qb6 {[%clk 0:04:33.6]} 13. Bxd7+ {[%clk 0:03:51]} 13... Bxd7 {[%clk
0:04:33.5]} 14. O-O-O {[%clk 0:03:48.5]} 14... Rc8 {[%clk 0:04:32.3]} 15. Qb3
{[%clk 0:03:39.2]} 15... Qxb3 {[%clk 0:04:28.7]} 16. c3 {[%clk 0:03:36.4]} 16...
Bf5 {[%clk 0:04:25]} 17. Rd2 {[%clk 0:03:32.9]} 17... exd4 {[%clk 0:04:24]} 18.
Ne2 {[%clk 0:03:25.3]} 18... dxc3 {[%clk 0:04:22.3]} 19. Rc2 {[%clk 0:03:23.3]}
19... Qxc2# {[%clk 0:04:20]} 0-1

[Event "Live Chess"]
[Site "Chess.com"]
[Date "2023.05.20"]
[Round "-"]
[White "PiotrD11"]
[Black "Brooms1989"]
[Result "1-0"]
[WhiteElo "1341"]
[BlackElo "1018"]
[TimeControl "300"]
[EndTime "13:05:29 PDT"]
[Termination "PiotrD11 won by checkmate"]

1. e4 {[%clk 0:04:59.1]} 1... e5 {[%clk 0:04:58.5]} 2. Nf3 {[%clk 0:04:57.5]}
2... Nc6 {[%clk 0:04:57.3]} 3. Bb5 {[%clk 0:04:55.5]} 3... a6 {[%clk 0:04:56.4]}
4. Ba4 {[%clk 0:04:54.3]} 4... Nf6 {[%clk 0:04:54.7]} 5. O-O {[%clk 0:04:52.7]}
5... Bc5 {[%clk 0:04:53.4]} 6. Re1 {[%clk 0:04:51.5]} 6... O-O {[%clk
0:04:50.6]} 7. c3 {[%clk 0:04:50.1]} 7... Bb6 {[%clk 0:04:48.6]} 8. d3 {[%clk
0:04:44.4]} 8... h6 {[%clk 0:04:46.1]} 9. h3 {[%clk 0:04:42.2]} 9... d6 {[%clk
0:04:43.8]} 10. Bc2 {[%clk 0:04:41.7]} 10... Ne7 {[%clk 0:04:33.4]} 11. a4
{[%clk 0:04:41.1]} 11... Ng6 {[%clk 0:04:29.6]} 12. a5 {[%clk 0:04:27.5]} 12...
Ba7 {[%clk 0:04:27.3]} 13. d4 {[%clk 0:04:26.8]} 13... exd4 {[%clk 0:04:19.2]}
14. cxd4 {[%clk 0:04:24.7]} 14... c5 {[%clk 0:04:15.7]} 15. d5 {[%clk
0:04:14.2]} 15... Re8 {[%clk 0:03:58.7]} 16. Nc3 {[%clk 0:04:12.7]} 16... b6
{[%clk 0:03:51.2]} 17. Bd2 {[%clk 0:03:24.3]} 17... bxa5 {[%clk 0:03:42.5]} 18.
Ba4 {[%clk 0:03:03.8]} 18... Re7 {[%clk 0:03:20.2]} 19. Bc6 {[%clk 0:02:41.7]}
19... Rb8 {[%clk 0:03:13.1]} 20. Qc2 {[%clk 0:02:40.1]} 20... Qb6 {[%clk
0:03:08.8]} 21. Na4 {[%clk 0:02:38.7]} 21... Qb3 {[%clk 0:02:49.9]} 22. Qxb3
{[%clk 0:02:20.6]} 22... Rxb3 {[%clk 0:02:49.8]} 23. Bxa5 {[%clk 0:02:19.5]}
23... Rxe4 {[%clk 0:02:32.6]} 24. Rxe4 {[%clk 0:02:12]} 24... Nxe4 {[%clk
0:02:32.5]} 25. Re1 {[%clk 0:01:52.1]} 25... f5 {[%clk 0:02:13.3]} 26. Nd2
{[%clk 0:01:31.1]} 26... Nxd2 {[%clk 0:01:51.3]} 27. Bxd2 {[%clk 0:01:28]} 27...
c4 {[%clk 0:01:43.6]} 28. Re8+ {[%clk 0:01:24.9]} 28... Kh7 {[%clk 0:01:39.1]}
29. Rxc8 {[%clk 0:01:23.9]} 29... Rd3 {[%clk 0:01:29.8]} 30. Bc3 {[%clk
0:01:12.5]} 30... Ne5 {[%clk 0:01:23.6]} 31. Rc7 {[%clk 0:00:59.4]} 31... Bc5
{[%clk 0:01:12.2]} 32. Nxc5 {[%clk 0:00:52.1]} 32... dxc5 {[%clk 0:01:12.1]} 33.
Bxe5 {[%clk 0:00:50.2]} 33... Rd2 {[%clk 0:01:06.3]} 34. Bc3 {[%clk 0:00:46.2]}
34... Rd1+ {[%clk 0:01:03.4]} 35. Kh2 {[%clk 0:00:44.2]} 35... Kg6 {[%clk
0:00:58.5]} 36. Rxg7+ {[%clk 0:00:43.4]} 36... Kh5 {[%clk 0:00:56.3]} 37. Be8+
{[%clk 0:00:41.1]} 37... Kh4 {[%clk 0:00:53.4]} 38. Bf6# {[%clk 0:00:39.1]} 1-0

[Event "Live Chess"]
[Site "Chess.com"]
[Date "2023.05.20"]
[Round "-"]
[White "TheSmoulderingMaster"]
[Black "MaximKris"]
[Result "1-0"]
[WhiteElo "1750"]
[BlackElo "1834"]
[TimeControl "300"]
[EndTime "13:05:31 PDT"]
[Termination "TheSmoulderingMaster won by checkmate"]

1. e4 {[%clk 0:04:58.5]} 1... e5 {[%clk 0:04:58.3]} 2. Nf3 {[%clk 0:04:57.4]}
2... Nc6 {[%clk 0:04:55.3]} 3. Bb5 {[%clk 0:04:56.4]} 3... a6 {[%clk 0:04:54.2]}
4. Ba4 {[%clk 0:04:55.2]} 4... Nf6 {[%clk 0:04:52.4]} 5. O-O {[%clk 0:04:53.9]}
5... Nxe4 {[%clk 0:04:49.6]} 6. d4 {[%clk 0:04:52.3]} 6... b5 {[%clk 0:04:47.6]}
7. Bb3 {[%clk 0:04:50.6]} 7... d5 {[%clk 0:04:46.4]} 8. dxe5 {[%clk 0:04:49]}
8... Be6 {[%clk 0:04:45.2]} 9. c3 {[%clk 0:04:47.5]} 9... Be7 {[%clk 0:04:41.9]}
10. Nbd2 {[%clk 0:04:46.7]} 10... Nc5 {[%clk 0:04:40.6]} 11. Bc2 {[%clk
0:04:45.3]} 11... Bg4 {[%clk 0:04:39.1]} 12. h3 {[%clk 0:04:43.2]} 12... Bh5
{[%clk 0:04:37.9]} 13. Nb3 {[%clk 0:04:40.1]} 13... Bg6 {[%clk 0:04:32.9]} 14.
Nbd4 {[%clk 0:04:37.6]} 14... Nxd4 {[%clk 0:04:30.4]} 15. cxd4 {[%clk
0:04:36.1]} 15... Bxc2 {[%clk 0:04:28.9]} 16. Qxc2 {[%clk 0:04:34.4]} 16... Ne4
{[%clk 0:04:28.3]} 17. Qc6+ {[%clk 0:04:31.8]} 17... Kf8 {[%clk 0:04:25.6]} 18.
Bf4 {[%clk 0:04:23.4]} 18... h6 {[%clk 0:04:13.5]} 19. Rac1 {[%clk 0:04:21.6]}
19... g5 {[%clk 0:04:11.2]} 20. Bh2 {[%clk 0:04:19.2]} 20... h5 {[%clk
0:04:08.5]} 21. e6 {[%clk 0:04:16.4]} 21... fxe6 {[%clk 0:04:02.8]} 22. Ne5
{[%clk 0:04:15.1]} 22... Kg7 {[%clk 0:03:56.6]} 23. Qxe6 {[%clk 0:04:13.3]}
23... Qe8 {[%clk 0:03:56]} 24. Qxd5 {[%clk 0:04:07.7]} 24... Nf6 {[%clk
0:03:53.7]} 25. Qe6 {[%clk 0:04:01.1]} 25... Bd6 {[%clk 0:03:43.2]} 26. Qf5
{[%clk 0:03:56.3]} 26... Bxe5 {[%clk 0:02:05.4]} 27. Bxe5 {[%clk 0:03:52.8]}
27... Qg6 {[%clk 0:02:00.2]} 28. Rxc7+ {[%clk 0:03:49.4]} 28... Kh6 {[%clk
0:01:56.9]} 29. Qxf6 {[%clk 0:03:43.6]} 29... Qxf6 {[%clk 0:00:18.6]} 30. Bxf6
{[%clk 0:03:41.4]} 30... Kg6 {[%clk 0:00:18.5]} 31. Bxh8 {[%clk 0:03:39.5]}
31... Rxh8 {[%clk 0:00:18.4]} 32. Re1 {[%clk 0:03:38.8]} 32... Rh6 {[%clk
0:00:18.3]} 33. Re6+ {[%clk 0:03:37.5]} 33... Kf5 {[%clk 0:00:16.8]} 34. Rxh6
{[%clk 0:03:36.6]} 34... Ke4 {[%clk 0:00:16.7]} 35. Rd7 {[%clk 0:03:33.8]} 35...
Kd3 {[%clk 0:00:15.8]} 36. d5 {[%clk 0:03:32.7]} 36... Kc2 {[%clk 0:00:15.7]}
37. d6 {[%clk 0:03:32.5]} 37... Kxb2 {[%clk 0:00:15.6]} 38. Rc7 {[%clk
0:03:31.8]} 38... Kxa2 {[%clk 0:00:15.5]} 39. d7 {[%clk 0:03:31.4]} 39... b4
{[%clk 0:00:15.4]} 40. d8=Q {[%clk 0:03:30.1]} 40... b3 {[%clk 0:00:15.3]} 41.
Rxa6+ {[%clk 0:03:26]} 41... Kb1 {[%clk 0:00:13.1]} 42. Qd3+ {[%clk 0:03:23.8]}
42... Kb2 {[%clk 0:00:12.3]} 43. Qc3+ {[%clk 0:03:21.8]} 43... Kb1 {[%clk
0:00:12.2]} 44. Qxb3# {[%clk 0:03:21]} 1-0

[Event "Live Chess"]
[Site "Chess.com"]
[Date "2023.05.20"]
[Round "-"]
[White "MartinWalker4"]
[Black "Leonid_Starozhilov"]
[Result "1-0"]
[WhiteElo "2052"]
[BlackElo "2637"]
[TimeControl "300"]
[EndTime "13:05:47 PDT"]
[Termination "MartinWalker4 won by resignation"]

1. e4 {[%clk 0:04:53.8]} 1... g6 {[%clk 0:04:58.6]} 2. d4 {[%clk 0:04:51.6]}
2... Bg7 {[%clk 0:04:58.1]} 3. Nc3 {[%clk 0:04:49.2]} 3... Nc6 {[%clk
0:04:56.5]} 4. Be3 {[%clk 0:04:46.3]} 4... d5 {[%clk 0:04:54.6]} 5. exd5 {[%clk
0:04:43.2]} 5... Nb4 {[%clk 0:04:53.7]} 6. Bc4 {[%clk 0:04:39]} 6... Nf6 {[%clk
0:04:52.3]} 7. Nf3 {[%clk 0:04:30.5]} 7... O-O {[%clk 0:04:50]} 8. O-O {[%clk
0:04:23.2]} 8... Nbxd5 {[%clk 0:04:47.8]} 9. Nxd5 {[%clk 0:04:20.9]} 9... Nxd5
{[%clk 0:04:46.1]} 10. c3 {[%clk 0:04:19.2]} 10... c5 {[%clk 0:04:42.6]} 11.
Bxd5 {[%clk 0:04:10.9]} 11... Qxd5 {[%clk 0:04:33]} 12. dxc5 {[%clk 0:04:09.6]}
12... Qh5 {[%clk 0:04:27.5]} 13. Nd4 {[%clk 0:04:03.5]} 13... Qxc5 {[%clk
0:04:20.7]} 14. Ne6 {[%clk 0:03:53.6]} 14... Qxe3 {[%clk 0:04:17.5]} 15. fxe3
{[%clk 0:03:51.2]} 15... Bxe6 {[%clk 0:04:16.7]} 16. Qe2 {[%clk 0:03:47.1]}
16... Be5 {[%clk 0:04:12.6]} 17. Rfd1 {[%clk 0:03:44]} 17... a6 {[%clk 0:04:10]}
18. Qf3 {[%clk 0:03:37.3]} 18... b5 {[%clk 0:03:59.2]} 19. Qb7 {[%clk
0:03:31.9]} 19... Bd6 {[%clk 0:03:51.4]} 20. Rd2 {[%clk 0:03:17.6]} 20... Rfb8
{[%clk 0:03:48.7]} 21. Qf3 {[%clk 0:03:15]} 21... Bc5 {[%clk 0:03:45.4]} 22. Kf2
{[%clk 0:03:09.2]} 22... a5 {[%clk 0:03:41.2]} 23. Qc6 {[%clk 0:03:00.2]} 23...
Ba7 {[%clk 0:03:30.3]} 24. b3 {[%clk 0:02:40.1]} 24... a4 {[%clk 0:03:24]} 25.
Qc7 {[%clk 0:02:12.5]} 25... Kf8 {[%clk 0:03:00.1]} 26. Rad1 {[%clk 0:02:10]}
26... Bb6 {[%clk 0:02:51.8]} 27. Qe5 {[%clk 0:02:02.4]} 27... Kg8 {[%clk
0:02:50.8]} 28. b4 {[%clk 0:01:52.7]} 28... Bc4 {[%clk 0:02:36.9]} 29. Rd7
{[%clk 0:01:47.7]} 29... Bd8 {[%clk 0:02:09.7]} 30. a3 {[%clk 0:01:41.2]} 30...
Be6 {[%clk 0:02:04.7]} 31. R7d2 {[%clk 0:01:36.2]} 31... Bb6 {[%clk 0:02:00.7]}
32. Rd3 {[%clk 0:01:25.8]} 32... h5 {[%clk 0:01:58.5]} 33. R3d2 {[%clk
0:01:22.4]} 33... Bb3 {[%clk 0:01:54.6]} 34. Rb1 {[%clk 0:01:17.4]} 34... Rb7
{[%clk 0:01:48.2]} 35. Qe4 {[%clk 0:01:11.5]} 35... Rab8 {[%clk 0:01:43.2]} 36.
Re1 {[%clk 0:00:59.9]} 36... Rc7 {[%clk 0:01:36.4]} 37. Qe5 {[%clk 0:00:51.3]}
37... Rc6 {[%clk 0:01:22.1]} 38. Qxb8+ {[%clk 0:00:48.9]} 38... Kg7 {[%clk
0:01:18.5]} 39. Qe5+ {[%clk 0:00:47.1]} 39... Rf6+ {[%clk 0:01:17.3]} 40. Kg1
{[%clk 0:00:44.4]} 40... Bc4 {[%clk 0:01:14.6]} 41. Rf2 {[%clk 0:00:39.7]} 41...
Bd8 {[%clk 0:01:13.4]} 42. Rxf6 {[%clk 0:00:37.6]} 42... exf6 {[%clk 0:01:13.3]}
43. Qd6 {[%clk 0:00:35.2]} 43... Be6 {[%clk 0:01:02.8]} 44. Qxd8 {[%clk
0:00:33.9]} 44... g5 {[%clk 0:01:02.3]} 45. Rf1 {[%clk 0:00:31.9]} 45... Bc4
{[%clk 0:01:00.9]} 46. Qxf6+ {[%clk 0:00:29.9]} 46... Kf8 {[%clk 0:01:00.4]} 47.
Qd8+ {[%clk 0:00:28]} 47... Kg7 {[%clk 0:00:59.8]} 48. Rf5 {[%clk 0:00:26.8]}
48... Be6 {[%clk 0:00:49.3]} 49. Rxg5+ {[%clk 0:00:25.1]} 49... Kh7 {[%clk
0:00:47.8]} 50. Qg8+ {[%clk 0:00:23.5]} 1-0

[Event "Live Chess"]
[Site "Chess.com"]
[Date "2023.05.20"]
[Round "-"]
[White "Jonmill"]
[Black "MrBlond89"]
[Result "0-1"]
[WhiteElo "1242"]
[BlackElo "1346"]
[TimeControl "300"]
[EndTime "13:05:48 PDT"]
[Termination "MrBlond89 won by resignation"]

1. e4 {[%clk 0:04:58]} 1... e5 {[%clk 0:04:59]} 2. Nc3 {[%clk 0:04:57.1]} 2...
Nc6 {[%clk 0:04:56.4]} 3. Bc4 {[%clk 0:04:55.5]} 3... Nf6 {[%clk 0:04:54.4]} 4.
d3 {[%clk 0:04:53.9]} 4... Bb4 {[%clk 0:04:53.3]} 5. f4 {[%clk 0:04:47]} 5... d6
{[%clk 0:04:46.2]} 6. Nf3 {[%clk 0:04:43.4]} 6... Na5 {[%clk 0:04:38.7]} 7. fxe5
{[%clk 0:04:33.8]} 7... dxe5 {[%clk 0:04:26.8]} 8. Nxe5 {[%clk 0:04:23.4]} 8...
Nxc4 {[%clk 0:04:25.2]} 9. Nxc4 {[%clk 0:04:22.4]} 9... Qd4 {[%clk 0:04:20.2]}
10. Be3 {[%clk 0:03:35.6]} 10... Bxc3+ {[%clk 0:04:17.7]} 11. bxc3 {[%clk
0:03:35.2]} 11... Qxc3+ {[%clk 0:04:16.7]} 12. Bd2 {[%clk 0:03:30.8]} 12... Qd4
{[%clk 0:04:15.4]} 13. Rf1 {[%clk 0:03:17.2]} 13... O-O {[%clk 0:04:05.1]} 14.
h3 {[%clk 0:03:11]} 14... Be6 {[%clk 0:03:54.7]} 15. c3 {[%clk 0:02:44.8]} 15...
Qxd3 {[%clk 0:03:51]} 16. Ne5 {[%clk 0:02:30.8]} 16... Qxe4+ {[%clk 0:03:47.1]}
0-1

[Event "Live Chess"]
[Site "Chess.com"]
[Date "2023.05.20"]
[Round "-"]
[White "boilerboy1"]
[Black "ProfPoisson"]
[Result "0-1"]
[WhiteElo "1042"]
[BlackElo "1074"]
[TimeControl "300"]
[EndTime "13:05:55 PDT"]
[Termination "ProfPoisson won by checkmate"]

1. e4 {[%clk 0:04:53.6]} 1... e5 {[%clk 0:04:58.4]} 2. Nc3 {[%clk 0:04:53.1]}
2... Nf6 {[%clk 0:04:56.6]} 3. Nf3 {[%clk 0:04:51.4]} 3... Nc6 {[%clk
0:04:52.3]} 4. Be2 {[%clk 0:04:48.2]} 4... d5 {[%clk 0:04:45.8]} 5. exd5 {[%clk
0:04:46.1]} 5... Nxd5 {[%clk 0:04:43.7]} 6. Nxd5 {[%clk 0:04:45.3]} 6... Qxd5
{[%clk 0:04:41.3]} 7. O-O {[%clk 0:04:44.8]} 7... Bd6 {[%clk 0:04:38.7]} 8. c3
{[%clk 0:04:43.3]} 8... e4 {[%clk 0:04:37.1]} 9. c4 {[%clk 0:04:18.8]} 9... Qh5
{[%clk 0:04:26.5]} 10. h3 {[%clk 0:03:58.1]} 10... exf3 {[%clk 0:04:23.7]} 11.
Bxf3 {[%clk 0:03:53.8]} 11... Qg6 {[%clk 0:04:19.8]} 12. Re1+ {[%clk 0:03:48.3]}
12... Ne7 {[%clk 0:04:14.2]} 13. d4 {[%clk 0:03:45.7]} 13... Bxh3 {[%clk
0:04:11.3]} 14. Bxb7 {[%clk 0:03:25.6]} 14... c6 {[%clk 0:04:04.1]} 15. Bxc6+
{[%clk 0:03:22.1]} 15... Bd7 {[%clk 0:03:40.5]} 16. Bxa8 {[%clk 0:03:19.3]}
16... O-O {[%clk 0:03:22.8]} 17. Qf3 {[%clk 0:03:15.2]} 17... Rc8 {[%clk
0:02:43.7]} 18. Be4 {[%clk 0:03:04.8]} 18... f5 {[%clk 0:02:28.2]} 19. Bd5+
{[%clk 0:03:00.5]} 19... Nxd5 {[%clk 0:02:25.5]} 20. Qxd5+ {[%clk 0:02:58.4]}
20... Kh8 {[%clk 0:02:23.8]} 21. c5 {[%clk 0:02:52]} 21... Bc6 {[%clk
0:02:21.4]} 22. Qxd6 {[%clk 0:02:48.6]} 22... Qxg2# {[%clk 0:02:18.8]} 0-1

[Event "Live Chess"]
[Site "Chess.com"]
[Date "2023.05.20"]
[Round "-"]
[White "KeithArkell"]
[Black "NAZRIZ1977"]
[Result "1-0"]
[WhiteElo "2613"]
[BlackElo "2072"]
[TimeControl "300"]
[EndTime "13:05:55 PDT"]
[Termination "KeithArkell won by resignation"]

1. d4 {[%clk 0:04:58.6]} 1... Nf6 {[%clk 0:04:58.2]} 2. Nf3 {[%clk 0:04:57]}
2... d5 {[%clk 0:04:57.2]} 3. c4 {[%clk 0:04:55.9]} 3... g6 {[%clk 0:04:55.9]}
4. cxd5 {[%clk 0:04:55.2]} 4... Nxd5 {[%clk 0:04:54.8]} 5. Nc3 {[%clk
0:04:54.5]} 5... Nxc3 {[%clk 0:04:53.9]} 6. bxc3 {[%clk 0:04:53.3]} 6... Bg7
{[%clk 0:04:53.8]} 7. e4 {[%clk 0:04:51.5]} 7... O-O {[%clk 0:04:52.9]} 8. Bc4
{[%clk 0:04:50.1]} 8... c5 {[%clk 0:04:52.1]} 9. Be3 {[%clk 0:04:48.5]} 9... Bg4
{[%clk 0:04:51]} 10. e5 {[%clk 0:04:38.4]} 10... cxd4 {[%clk 0:04:46.3]} 11.
cxd4 {[%clk 0:04:37.5]} 11... Nc6 {[%clk 0:04:43.9]} 12. Be2 {[%clk 0:04:30.9]}
12... f6 {[%clk 0:04:36.5]} 13. exf6 {[%clk 0:04:28.7]} 13... Bxf6 {[%clk
0:04:35.7]} 14. O-O {[%clk 0:04:26.6]} 14... Bxf3 {[%clk 0:04:33]} 15. Bxf3
{[%clk 0:04:26.5]} 15... Nxd4 {[%clk 0:04:32.2]} 16. Bxb7 {[%clk 0:04:23.9]}
16... Rb8 {[%clk 0:04:30.1]} 17. Be4 {[%clk 0:04:22.7]} 17... e5 {[%clk
0:04:18.3]} 18. Rb1 {[%clk 0:04:16.9]} 18... Rxb1 {[%clk 0:04:13.9]} 19. Qxb1
{[%clk 0:04:15.5]} 19... Qb6 {[%clk 0:04:13.4]} 20. Qxb6 {[%clk 0:04:14]} 20...
axb6 {[%clk 0:04:12.3]} 21. Bd5+ {[%clk 0:04:01.8]} 21... Kg7 {[%clk 0:04:10.8]}
22. g3 {[%clk 0:03:58.3]} 22... Rd8 {[%clk 0:04:06.7]} 23. Bc4 {[%clk
0:03:52.8]} 23... Rb8 {[%clk 0:03:56.9]} 24. Rb1 {[%clk 0:03:49.1]} 24... b5
{[%clk 0:03:42.5]} 25. Bxd4 {[%clk 0:03:43.3]} 25... exd4 {[%clk 0:03:41.7]} 26.
Bxb5 {[%clk 0:03:42.3]} 26... Kf8 {[%clk 0:03:38]} 27. Bd3 {[%clk 0:03:38.9]}
27... Rxb1+ {[%clk 0:03:35.6]} 28. Bxb1 {[%clk 0:03:38.8]} 28... Bd8 {[%clk
0:03:35.3]} 29. Kf1 {[%clk 0:03:36.5]} 29... Ke7 {[%clk 0:03:34.9]} 30. Ke2
{[%clk 0:03:35.8]} 30... Kd6 {[%clk 0:03:34.6]} 31. h4 {[%clk 0:03:31.2]} 31...
Ke5 {[%clk 0:03:32.1]} 32. a4 {[%clk 0:03:29.3]} 32... Bb6 {[%clk 0:03:27.9]}
33. Bd3 {[%clk 0:03:28]} 33... Kf6 {[%clk 0:03:25.8]} 34. Kf3 {[%clk 0:03:27.1]}
34... h6 {[%clk 0:03:24.5]} 35. Ke4 {[%clk 0:03:26.2]} 35... g5 {[%clk
0:03:23.7]} 36. hxg5+ {[%clk 0:03:24.5]} 36... Kxg5 {[%clk 0:03:23.6]} 37. Kd5
{[%clk 0:03:19.6]} 37... Kg4 {[%clk 0:03:21]} 38. Be2+ {[%clk 0:03:11.7]} 38...
Kh3 {[%clk 0:03:18.1]} 39. f4 {[%clk 0:03:10.8]} 39... Kxg3 {[%clk 0:03:14.3]}
40. f5 {[%clk 0:03:10.2]} 40... Bd8 {[%clk 0:03:06.6]} 41. Ke6 {[%clk
0:02:56.3]} 41... Kf2 {[%clk 0:03:00.6]} 42. Bh5 {[%clk 0:02:50.5]} 42... Ke3
{[%clk 0:02:51.6]} 43. f6 {[%clk 0:02:49.1]} 43... Bxf6 {[%clk 0:02:49.2]} 44.
Kxf6 {[%clk 0:02:48.3]} 44... d3 {[%clk 0:02:48.9]} 45. a5 {[%clk 0:02:45.7]}
45... Kd4 {[%clk 0:02:48.1]} 46. a6 {[%clk 0:02:44.8]} 1-0